Cogmind - Beta 15 @@@ ROGUE MODE // 2025.10.20 @ 14:06:31 Player: DietSnapple Result: Destroyed by Y-54 Guardian with Gatling Laser Performance ------------- Evolutions (4) 2000 Regions Visited (11) 2200 Robots Destroyed (65) 325 Value Destroyed (2199) 2199 Prototype IDs (29) 580 Alien Tech Used (0) 0 Bonus (300) 300 TOTAL SCORE: 7604 Bonus ------- Aligned with FarCom 300 Cogmind --------- Core Integrity 0/850 Matter 33/300 Energy 100/100 System Corruption 20% Temperature Cool (6) Movement Core (50) Location -6/Factory Parts ------- > --- POWER (2) -------- (None) > --- PROPULSION (4) --- (None) > --- UTILITY (7) ------ (None) > --- WEAPON (2) ------- (None) > --- INVENTORY (5) ---- Armored Leg Improved VSS Leg Cloak of Protection Component Analysis Suite Improved Grenade Launcher Peak State ------------ > --- POWER ------------ Improved Deuterium Engine Fission Core > --- PROPULSION ------- Advanced Treads Medium Treads Medium Treads > --- UTILITY ---------- Improved Cooling System Large Storage Unit Transmission Jammer Heavy Armor Plating Hacking Suite System Shield > --- WEAPON ----------- Magnetic Acceleration Cannon Magnetic Acceleration Cannon > --- INVENTORY -------- Deuterium Engine Fission Core Advanced Visual Processing Unit Improved Sensor Array Weapon Cycler Cloak of Protection Hardened Medium Armor Plating Shield Generator Hacking Suite Arc Projector Arc Projector Heavy Particle Gun Gauss Rifle Improved Grenade Launcher Improved Datajack [Rating: 56] Favorites ----------- Power Deuterium Engine Engine Deuterium Engine Power Core Fission Core Propulsion Light Treads Treads Light Treads Leg Aluminum Leg Wheel Compact Wheel Hover Unit Backup Propulsion III Flight Unit VTOL Module Utility Large Storage Unit Device Transmission Jammer Storage Large Storage Unit Processor Improved Signal Interpreter Hackware Hacking Suite Protection Hardened Medium Armor Plating Weapon Gauss Rifle Energy Gun Medium Laser Ballistic Gun Gauss Rifle Ballistic Cannon Magnetic Acceleration Cannon Launcher Grenade Launcher Slashing Weapon Greatsword Special Melee Weapon Improved Datajack Build | -11 -10 -10 -10 -9 -8 -7 -7 -7 -6 -6 -6 ------- Run | Yrd Mat Min Exi Min Mat Fac Was Fac Fac Was Fac Slots Evolved 8 | . . . . . 4 2 . . 2 . . Power 1 | . . . . . . . . . 1 . . Propulsion 2 | . . . . . 2 . . . . . . Utility 5 | . . . . . 2 2 . . 1 . . Weapon . | . . . . . . . . . . . . Parts Attached 79 | 7 7 . . . 38 8 . 4 13 1 1 Power 11 | 1 2 . . . 5 . . . 3 . . Engine 8 | 1 2 . . . 3 . . . 2 . . Core 3 | . . . . . 2 . . . 1 . . Reactor . | . . . . . . . . . . . . Propulsion 25 | 2 1 . . . 18 2 . . 1 . 1 Treads 10 | . . . . . 8 2 . . . . . Leg 2 | . . . . . 2 . . . . . . Wheel 10 | 2 1 . . . 6 . . . 1 . . Hover . | . . . . . . . . . . . . Flight 3 | . . . . . 2 . . . . . 1 Utility 23 | 1 3 . . . 9 5 . 1 4 . . Device 6 | . 1 . . . 3 1 . . 1 . . Storage 3 | 1 1 . . . . . . . 1 . . Processor 2 | . . . . . 2 . . . . . . Hackware 3 | . . . . . . 2 . . 1 . . Protection 9 | . 1 . . . 4 2 . 1 1 . . Artifact . | . . . . . . . . . . . . Weapon 20 | 3 1 . . . 6 1 . 3 5 1 . Energy Gun 7 | 3 . . . . . 1 . 2 1 . . Energy Cannon . | . . . . . . . . . . . . Ballistic Gun 5 | . . . . . 5 . . . . . . Ballistic Cannon 4 | . . . . . . . . . 4 . . Launcher 2 | . 1 . . . . . . 1 . . . Special Weapon . | . . . . . . . . . . . . Impact Weapon . | . . . . . . . . . . . . Slashing Weapon 1 | . . . . . 1 . . . . . . Piercing Weapon . | . . . . . . . . . . . . Special Melee Weapon 1 | . . . . . . . . . . 1 . Unidentified Prototypes 1 | . . . . . . 1 . . . . . Parts Lost 35 | . 2 2 . . 6 . 1 1 10 5 8 Power 8 | . 1 . . . 1 . . . 2 2 2 Propulsion 10 | . 1 . . . 3 . . . 3 1 2 Utility 10 | . . 1 . . 2 . . 1 3 1 2 Weapon 7 | . . 1 . . . . 1 . 2 1 2 Highest Loss Streak 8 | . 2 2 . . 1 . 1 1 6 5 8 To Critical Strikes . | . . . . . . . . . . . . Average Backups 12 | 2 10 14 14 15 14 13 14 14 12 8 4 Power . | . . . . . . 1 1 1 1 . . Propulsion . | 1 2 2 2 2 . . . . . . 1 Utility 7 | . 2 5 5 6 10 9 10 9 5 4 2 Weapon 3 | . 5 7 7 7 3 3 3 3 3 2 1 Tool/Special . | . . . . . . . . . . . . Unused Backups 36 | . . . . . 23 . . 1 1 4 7 Power 2 | . . . . . 1 . . . . 1 . Propulsion 8 | . . . . . 5 . . . . . 3 Utility 19 | . . . . . 12 . . 1 . 2 4 Weapon 7 | . . . . . 5 . . . 1 1 . Tool/Special . | . . . . . . . . . . . . Average Slot Usage (%) 82 | . 95 94 71 71 94 91 86 79 78 56 4 Engine 6 | . 13 14 14 14 4 7 7 7 5 4 . Core 2 | . . . . . 4 . . . 5 4 . Treads 13 | . . . . . 20 30 29 23 7 . . Wheel 9 | . 27 28 28 28 11 . . . 3 3 . Device 5 | . 6 . . . 4 3 7 7 12 9 . Storage 8 | . 14 14 14 14 9 7 7 7 8 9 . Processor 3 | . . . . . 9 3 . . . . . Hackware 4 | . . . . . . 14 15 15 10 4 . Protection 8 | . 3 11 . . 12 7 7 7 8 8 . Energy Gun 3 | . 23 11 . . . . . 9 2 . 1 Ballistic Gun 6 | . . . . . 14 14 10 . . . . Ballistic Cannon 1 | . . . . . . . . . 7 8 . Launcher 1 | . 4 14 14 14 . . . 1 . . . Peak Build Rating 56 | 6 12 10 8 8 34 46 46 44 56 45 10 Average Rating 28 | 4 9 9 8 8 30 39 42 41 44 27 2 On Entrance 20 | . 6 10 8 8 8 32 46 36 40 45 2 Naked Turns 445 | . . . . . . . . . . 43 402 Heaviest Build 77 | 14 33 33 28 28 53 53 53 55 77 77 6 Greatest Support 101 | 32 32 26 26 26 85 101 101 78 78 10 12 Greatest Overweight (x) 16 | . 1 1 1 1 3 . . . 16 7 . Average Overweight (x) . | . . 1 1 1 . . . . 3 1 . Largest Inventory Capacity 15 | 8 15 15 15 15 15 15 15 15 15 15 5 Average Capacity 14 | 6 14 15 15 15 15 15 15 15 15 11 5 Most Carried 15 | 4 15 14 15 15 15 15 15 15 15 10 5 Average Carried 13 | 2 11 14 14 15 14 14 15 14 12 8 4 Final Capacity 15 | 8 15 15 15 15 15 15 15 15 15 5 5 Final Carried 15 | 4 14 14 15 15 15 15 15 15 10 5 5 Class Distribution -------------------- 56% | Mutant 26% | Hacker-Mutant 9% | Scavenger-Mutant 4% | Scavenger-Assassin 3% | Scavenger-Skirmisher Dominant Class ---------------- Mutant | -10/Materials Mutant | -10/Mines Mutant | -10/Exiles Mutant | -9/Mines Mutant | -8/Materials Hacker-Mutant | -7/Factory Hacker-Mutant | -7/Waste Hacker-Mutant | -7/Factory Hacker-Mutant | -6/Factory Mutant | -6/Waste Mutant | -6/Factory Resources | -11 -10 -10 -10 -9 -8 -7 -7 -7 -6 -6 -6 ----------- Run | Yrd Mat Min Exi Min Mat Fac Was Fac Fac Was Fac Matter Collected 2182 | 240 120 9 . 41 1185 85 . . 496 6 . Remotely . | . . . . . . . . . . . . Salvage Created 2588 | . 322 9 . . 1455 141 . 134 448 . 79 Parts 158 | . 29 . . . 87 6 . 5 25 . 6 Haulers Intercepted 5 | . 1 . . . 4 . . . . . . Recyclers Shooed 1 | . . . . . 1 . . . . . . Parts Field Recycled . | . . . . . . . . . . . . Retrieved Matter . | . . . . . . . . . . . . Parts Self-Destructed . | . . . . . . . . . . . . Prevented . | . . . . . . . . . . . . Kills | -11 -10 -10 -10 -9 -8 -7 -7 -7 -6 -6 -6 ------- Run | Yrd Mat Min Exi Min Mat Fac Was Fac Fac Was Fac Combat Hostiles Destroyed 47 | . 8 . . . 22 2 . 2 10 . 3 Melee 8 | . . . . . 8 . . . . . . Guns 28 | . 7 . . . 14 2 . 1 1 . 3 Cannons 8 | . . . . . . . . . 8 . . AOE 2 | . 1 . . . . . . . 1 . . Classes Destroyed 12 | . 4 . . . 7 . . . 1 . . Worker 5 | . 2 1 . . 2 . . . . . . Builder 2 | . . . . . 1 . . . 1 . . Tunneler 1 | . . . . . 1 . . . . . . Hauler 5 | . 1 . . . 4 . . . . . . Recycler 2 | . . . . . 2 . . . . . . Operator 1 | . . . . . 1 . . . . . . Watcher 2 | . . . . . 1 1 . . . . . Swarmer 10 | . 3 . . . 4 . . . . . 3 Grunt 18 | . 5 . . . 7 1 . . 5 . . Sentry 11 | . . . . . 9 . . 1 1 . . Hunter 4 | . . . . . 2 1 . 1 . . . Programmer 4 | . . . . . . . . . 4 . . Best Kill Streak 4 | . 4 1 . . 4 2 . 1 3 . 3 Combat Bots Only 3 | . 3 . . . 3 1 . 1 3 . 3 Max Kills in Single Turn 2 | . 2 1 . . 1 2 . 1 1 . 2 Gunslinging . | . . . . . . . . . . . . Exploded 1 | . 1 . . . . . . . 1 . . Melee 1 | . . . . . 1 . . . . . . Uniques/NPCs Destroyed . | . . . . . . . . . . . . Combat | -11 -10 -10 -10 -9 -8 -7 -7 -7 -6 -6 -6 -------- Run | Yrd Mat Min Exi Min Mat Fac Was Fac Fac Was Fac Hostile Shots Fired 645 | . 35 5 . . 152 16 2 80 217 4 134 Missed 211 | . 10 . . . 39 3 . 27 74 . 58 Hits 434 | . 25 5 . . 113 13 2 53 143 4 76 Melee 6 | . . . . . . . 2 . . 4 . Projectile 428 | . 25 5 . . 113 13 . 53 143 . 76 AOE 8 | . . 5 . . 2 . . . 1 . . Critical Strikes 15 | . 1 . . . 9 . . 1 3 1 . Part Disruptions 1 | . . . . . . . . . 1 . . Damage Taken 6367 | . 382 241 . . 1512 218 90 504 2371 213 836 Core 1312 | . 122 95 . . 195 . . 49 256 107 488 Absorbed by Shields . | . . . . . . . . . . . . Regen/Repaired (Parts) 592 | . . . . . 316 . . . 276 . . Core Remaining (%) 67 | 100 . . . 13 64 . . 93 . . . Volleys Fired 196 | . 26 6 . . 80 11 . 13 46 5 9 Largest 2 | . 2 1 . . 2 2 . 2 2 2 2 Hottest 110 | . 100 30 . . 56 56 . 110 110 88 60 Shots Fired 351 | . 42 6 . . 160 22 . 27 67 9 18 Gun 274 | . 41 . . . 160 22 . 22 11 . 18 Cannon 65 | . . . . . . . . . 56 9 . Launcher 12 | . 1 6 . . . . . 5 . . . Special . | . . . . . . . . . . . . Kinetic 247 | . . . . . 160 22 . . 56 9 . Thermal 59 | . 41 . . . . . . . . . 18 Explosive 12 | . 1 6 . . . . . 5 . . . Electromagnetic 33 | . . . . . . . . 22 11 . . Robot Hit Streak 15 | . 11 . . . 15 5 . 14 9 6 7 Robot Miss Streak 5 | . 3 . . . 4 3 . 1 5 1 2 Penetration Max 1 | . . . . . 1 1 . . . . . Secondary Targets 3 | . . . . . . 1 . . . . 2 Max Gunslinging Chain 1 | . . . . . . 1 . . . . 1 Shots Hit Robots 255 | . 29 . . . 135 13 . 21 36 9 12 Core Hits 114 | . 18 5 . . 48 6 . 8 21 1 7 Critical Kills . | . . . . . . . . . . . . Critical Parts Destroyed 2 | . . . . . 2 . . . . . . Critical Strikes 6 | . 1 . . . 2 . . . 3 . . Burn 1 | . 1 . . . . . . . . . . Destroy 2 | . . . . . 2 . . . . . . Blast 3 | . . . . . . . . . 3 . . Melee Attacks 31 | . . . . . 30 . . . . 1 . Impact . | . . . . . . . . . . . . Slashing 30 | . . . . . 30 . . . . . . Piercing . | . . . . . . . . . . . . Sneak Attacks 8 | . . . . . 8 . . . . . . Combat Hostiles . | . . . . . . . . . . . . Follow-up Attacks . | . . . . . . . . . . . . Damage Inflicted 6597 | . 539 69 . . 3801 249 . 278 1283 241 137 Guns 3295 | . 385 . . . 2286 249 . 185 76 . 114 Cannons 1290 | . . . . . . . . . 1049 241 . Explosions 465 | . 154 69 . . . . . 93 149 . . Melee 1503 | . . . . . 1503 . . . . . . Ramming 44 | . . . . . 12 . . . 9 . 23 Kinetic 3825 | . . . . . 2286 249 . . 1049 241 . Thermal 587 | . 385 . . . . . . . 88 . 114 Explosive 316 | . 154 69 . . . . . 93 . . . Electromagnetic 322 | . . . . . . . . 185 137 . . Impact . | . . . . . . . . . . . . Slashing 1503 | . . . . . 1503 . . . . . . Piercing . | . . . . . . . . . . . . Highest Corruption 20 | . . . . . 1 . 10 10 5 19 20 Average Corruption 6 | . . . . . 1 . 5 10 3 9 19 Corruption Purged . | . . . . . . . . . . . . Corruption Blocked . | . . . . . . . . . . . . Effects 68 | . . . . . 7 . 2 16 16 4 23 Message Errors 15 | . . . . . 2 . . 3 5 1 4 Matter Fused 18 | . . . . . 1 . . 6 5 . 6 Heat Flow Errors 6 | . . . . . 1 . 1 1 1 . 2 Energy Discharges 8 | . . . . . . . . 1 2 1 4 Parts Rejected 3 | . . . . . . . 1 . . 1 1 Data Loss (minor) 7 | . . . . . 3 . . 1 1 . 2 Data Loss (major) 3 | . . . . . . . . . 1 . 2 Misfires 2 | . . . . . . . . 2 . . . Alerts 3 | . . . . . . . . 1 1 . 1 Misdirections 2 | . . . . . . . . . . 1 1 Weapon Failures 1 | . . . . . . . . 1 . . . Overload Shots . | . . . . . . . . . . . . Overflow Damage 294 | . . . . . 277 . . . 17 . . Projectiles 17 | . . . . . . . . . 17 . . Explosions . | . . . . . . . . . . . . Melee 277 | . . . . . 277 . . . . . . Knockbacks 10 | . . . . . . . . . 9 . 1 Impact 1 | . . . . . . . . . . . 1 Kinetic 8 | . . . . . . . . . 8 . . Secondary 1 | . . . . . . . . . 1 . . Self-Inflicted Damage 172 | . 38 18 . . . . . . 106 . 10 Shots 5 | . 1 1 . . . . . . 3 . . Rammed 10 | . . . . . 1 . . . 2 . 7 Targets Rammed 10 | . . . . . 1 . . . 2 . 7 Kicked . | . . . . . . . . . . . . Crushed . | . . . . . . . . . . . . Highest Temperature 256 | . 201 . . . 249 6 250 253 256 . 171 Average Temperature 80 | . 100 . . . 74 3 133 83 50 . 83 Received Heat Transfer 1626 | . 147 . . . 579 27 . 102 651 . 120 Effects 2 | . . . . . 1 . . 1 . . . Energy Bleed 2 | . . . . . 1 . . 1 . . . Siege Activations . | . . . . . . . . . . . . Martial Activations . | . . . . . . . . . . . . Shielding Activations . | . . . . . . . . . . . . Robots Disrupted 2 | . . . . . . . . 2 . . . Combat Hostiles 2 | . . . . . . . . 2 . . . Robots Corrupted 1 | . . . . . . . . 1 . . . Combat Hostiles 1 | . . . . . . . . 1 . . . Parts Fried 1 | . . . . . . . . 1 . . . Impact Corruptions . | . . . . . . . . . . . . Robots Melted . | . . . . . . . . . . . . Combat Hostiles . | . . . . . . . . . . . . Parts Melted 2 | . 2 . . . . . . . . . . Heat Transferred 1752 | . 1221 . . . . . . . 50 . 481 Parts Sabotaged . | . . . . . . . . . . . . Parts Stolen . | . . . . . . . . . . . . Parts Stripped . | . . . . . . . . . . . . Power Chain Reactions 1 | . . . . . . . . . 1 . . Alert | -11 -10 -10 -10 -9 -8 -7 -7 -7 -6 -6 -6 ------- Run | Yrd Mat Min Exi Min Mat Fac Was Fac Fac Was Fac Maximum Alert Level 1 | . . . . . 1 . . . . . . Low Security (%) 86 | 100 100 100 . 100 66 100 100 100 100 100 100 Level 1 13 | . . . . . 33 . . . . . . Level 2 . | . . . . . . . . . . . . Level 3 . | . . . . . . . . . . . . Level 4 . | . . . . . . . . . . . . Level 5 . | . . . . . . . . . . . . High Security . | . . . . . . . . . . . . Max Security . | . . . . . . . . . . . . Peak Influence 303 | . 111 24 . . 303 123 7 64 76 1 94 Initial 123 | . . 24 . . . 123 7 . . . . Average 76 | . 42 1 . . 163 36 1 9 17 . 9 Influence Increases 1981 | . 265 21 . . 937 118 . 94 418 1 127 Destroy 0b10 Robot/C 940 | . 160 . . . 440 40 . 40 200 . 60 Destroy 0b10 Robot/NC 90 | . 15 5 . . 60 5 . . 5 . . Destroy Leader 304 | . 42 . . . 150 22 . 20 60 . 10 Successful Hack 73 | . . . . . 9 36 . . 16 . 12 Disable Machine 180 | . . . . . 90 15 . 15 60 . . Destroy Structure 64 | . 3 16 . . 8 . . 19 17 1 . Lose Combat Pursuer 330 | . 45 . . . 180 . . . 60 . 45 Influence Decreases 1971 | . 202 84 . . 666 367 22 94 418 1 117 Entered New Map 202 | . . 39 . . . 148 15 . . . . Time Decay 1478 | . 182 25 . . 615 219 7 94 299 . 37 Lost Part 242 | . 20 20 . . 51 . . . 70 1 80 Purge Threat 49 | . . . . . . . . . 49 . . Squads Dispatched 16 | . 1 . . . 2 2 . . 7 . 4 Investigation 5 | . 1 . . . . 1 . . 2 . 1 Extermination 5 | . . . . . . 1 . . 3 . 1 Reinforcement 5 | . . . . . 1 . . . 2 . 2 Assault . | . . . . . . . . . . . . Garrison 1 | . . . . . 1 . . . . . . Intercept . | . . . . . . . . . . . . Searches Triggered . | . . . . . . . . . . . . Construction Impeded . | . . . . . . . . . . . . Haulers Reinforced 1 | . . . . . . . . . 1 . . Active Scanning Responses . | . . . . . . . . . . . . Cargo Convoy Interrupts . | . . . . . . . . . . . . Stealth | -11 -10 -10 -10 -9 -8 -7 -7 -7 -6 -6 -6 --------- Run | Yrd Mat Min Exi Min Mat Fac Was Fac Fac Was Fac Distress Signals 13 | . 2 1 . . 7 . . 1 2 . . Communications Jammed 26 | . . . . . . 20 . . 6 . . Distress Signals 26 | . . . . . . 20 . . 6 . . Times Spotted 123 | . 16 1 . . 54 4 3 4 21 5 15 Peak Tracking Total 6 | . 4 1 . . 5 2 3 3 5 5 6 Tactical Retreats 13 | . 2 . . . 8 . . . 2 . 1 Traps | -11 -10 -10 -10 -9 -8 -7 -7 -7 -6 -6 -6 ------- Run | Yrd Mat Min Exi Min Mat Fac Was Fac Fac Was Fac Traps Triggered 7 | . 4 . . . . 1 . . 2 . . Indirectly . | . . . . . . . . . . . . Trap Hack Attempts . | . . . . . . . . . . . . Triggered . | . . . . . . . . . . . . Disarmed . | . . . . . . . . . . . . Reprogrammed . | . . . . . . . . . . . . Reused . | . . . . . . . . . . . . Traps Extracted . | . . . . . . . . . . . . Installed . | . . . . . . . . . . . . Triggered . | . . . . . . . . . . . . Machines | -11 -10 -10 -10 -9 -8 -7 -7 -7 -6 -6 -6 ---------- Run | Yrd Mat Min Exi Min Mat Fac Was Fac Fac Was Fac Machines Disabled 12 | . . . . . 6 1 . 1 4 . . Max in Single Turn 2 | . . . . . 1 1 . 1 2 . . Garrison Access 1 | . . . . . 1 . . . . . . Machines Repaired . | . . . . . . . . . . . . Machines Dismantled . | . . . . . . . . . . . . Machines Sabotaged . | . . . . . . . . . . . . Overloaded Fab Kills . | . . . . . . . . . . . . Hacking | -11 -10 -10 -10 -9 -8 -7 -7 -7 -6 -6 -6 --------- Run | Yrd Mat Min Exi Min Mat Fac Was Fac Fac Was Fac Machines Accessed 24 | . . . 1 . 8 3 . . 8 . 4 Terminals 12 | . . . . . 4 2 . . 5 . 1 Fabricators 1 | . . . . . . . . . . . 1 Repair Stations 5 | . . . . . 1 1 . . 2 . 1 Recycling Units 4 | . . . . . 2 . . . 1 . 1 Scanalyzers . | . . . . . . . . . . . . Garrison Access 1 | . . . . . 1 . . . . . . Total Hacks 64 | . . . 1 . 27 11 . . 17 . 8 Successful 34 | . . . 1 . 16 4 . . 9 . 4 Failed 30 | . . . . . 11 7 . . 8 . 4 Catastrophic 5 | . . . . . 1 . . . 3 . 1 Database Lockouts . | . . . . . . . . . . . . Manual 17 | . . . 1 . 3 6 . . 7 . . Terminals 39 | . . . . . 18 9 . . 11 . 1 Fabricators 2 | . . . . . . . . . . . 2 Repair Stations 14 | . . . . . 4 2 . . 5 . 3 Recycling Units 5 | . . . . . 2 . . . 1 . 2 Scanalyzers . | . . . . . . . . . . . . Garrison Access 3 | . . . . . 3 . . . . . . Terminal Hacks 17 | . . . 1 . 8 2 . . 5 . 1 Record 1 | . . . . . 1 . . . . . . Prototype ID Bank 2 | . . . . . 1 1 . . . . . Open DSF 2 | . . . . . . . . . 1 . 1 Alert Level 3 | . . . . . 2 . . . 1 . . Unreport Threat 1 | . . . . . . . . . 1 . . Locate Traps 3 | . . . . . 1 1 . . 1 . . Assault Status 1 | . . . . . 1 . . . . . . Recall Investigation 1 | . . . . . . . . . 1 . . Hauler Manifests 1 | . . . . . 1 . . . . . . Zone Layout 1 | . . . . . 1 . . . . . . Proto ID Catalog 1 | . . . 1 . . . . . . . . Fabricator Hacks . | . . . . . . . . . . . . Repair Station Hacks 9 | . . . . . 4 1 . . 3 . 1 Scan Component 4 | . . . . . 2 1 . . 1 . . Repair 3 | . . . . . 2 . . . 1 . . Refit 2 | . . . . . . . . . 1 . 1 Recycling Unit Hacks 4 | . . . . . 2 . . . . . 2 Process 1 | . . . . . . . . . . . 1 Report Inventory 2 | . . . . . 2 . . . . . . Retrieve Matter 1 | . . . . . . . . . . . 1 Scanalyzer . | . . . . . . . . . . . . Garrison Access Hacks 1 | . . . . . 1 . . . . . . Seal Access 1 | . . . . . 1 . . . . . . Unauthorized Hacks 3 | . . . . . 1 1 . . 1 . . Terminals 3 | . . . . . 1 1 . . 1 . . Botnet 3 | . . . . . 1 1 . . 1 . . Fabricators . | . . . . . . . . . . . . Repair Stations . | . . . . . . . . . . . . Recycling Units . | . . . . . . . . . . . . Scanalyzers . | . . . . . . . . . . . . Garrison Access . | . . . . . . . . . . . . Data Cores Recovered . | . . . . . . . . . . . . Used . | . . . . . . . . . . . . Hacking Detections 16 | . . . . . 4 3 . . 7 . 2 Full Trace Events 4 | . . . . . . 1 . . 2 . 1 Feedback Events 1 | . . . . . . . . . . . 1 Corruption 1 | . . . . . . . . . . . 1 Feedback Blocked . | . . . . . . . . . . . . Robot Schematics Acquired . | . . . . . . . . . . . . Robots Built . | . . . . . . . . . . . . Authchips . | . . . . . . . . . . . . Time . | . . . . . . . . . . . . Total Robot Build Rating . | . . . . . . . . . . . . Part Schematics Acquired . | . . . . . . . . . . . . Parts Built . | . . . . . . . . . . . . Authchips . | . . . . . . . . . . . . Time . | . . . . . . . . . . . . Total Part Build Rating . | . . . . . . . . . . . . Parts Repaired 3 | . . . . . 2 . . . 1 . . Time 95 | . . . . . 76 . . . 19 . . Parts Recycled . | . . . . . . . . . . . . Recycled Matter 9 | . . . . . . . . . . . 9 Retrieved Matter 9 | . . . . . . . . . . . 9 Retrieved Components . | . . . . . . . . . . . . Parts Scanalyzed . | . . . . . . . . . . . . Part Schematics Acquired . | . . . . . . . . . . . . Parts Damaged . | . . . . . . . . . . . . Bothacking | -11 -10 -10 -10 -9 -8 -7 -7 -7 -6 -6 -6 ------------ Run | Yrd Mat Min Exi Min Mat Fac Was Fac Fac Was Fac Used RIF Installer . | . . . . . . . . . . . . Robots Hacked 1 | . . . . . . . . . . 1 . Non-combat . | . . . . . . . . . . . . Combat 1 | . . . . . . . . . . 1 . Robot Hacks Applied 1 | . . . . . . . . . . 1 . parse_system 1 | . . . . . . . . . . 1 . Relay Couplers Released . | . . . . . . . . . . . . Fabnet Peak Effective % . | . . . . . . . . . . . . Robots Rewired . | . . . . . . . . . . . . Allies Hacked . | . . . . . . . . . . . . Hacks Repelled . | . . . . . . . . . . . . Allies | -11 -10 -10 -10 -9 -8 -7 -7 -7 -6 -6 -6 -------- Run | Yrd Mat Min Exi Min Mat Fac Was Fac Fac Was Fac Total Allies . | . . . . . . . . . . . . Largest Group . | . . . . . . . . . . . . Highest-Rated Group . | . . . . . . . . . . . . Highest-Rated Ally . | . . . . . . . . . . . . Total Orders . | . . . . . . . . . . . . Ally Attacks . | . . . . . . . . . . . . Total Damage . | . . . . . . . . . . . . Kills . | . . . . . . . . . . . . Allies Corrupted . | . . . . . . . . . . . . Allies Melted . | . . . . . . . . . . . . Intel | -11 -10 -10 -10 -9 -8 -7 -7 -7 -6 -6 -6 ------- Run | Yrd Mat Min Exi Min Mat Fac Was Fac Fac Was Fac Active Infowar (turns) 3213 | . . . . . 602 289 117 514 1614 77 . Sensors 602 | . . . . . 602 . . . . . . Jamming 2611 | . . . . . . 289 117 514 1614 77 . Robot Analysis Total . | . . . . . . . . . . . . Derelict Logs Recovered 1 | . . . . 1 . . . . . . . Drone Launches . | . . . . . . . . . . . . Drone Recoveries . | . . . . . . . . . . . . Exploration | -11 -10 -10 -10 -9 -8 -7 -7 -7 -6 -6 -6 ------------- Run | Yrd Mat Min Exi Min Mat Fac Was Fac Fac Was Fac Turns Passed 8166 | 75 597 476 231 147 3149 625 117 514 1614 121 500 Spaces Moved 5509 | 63 456 261 220 141 1906 365 76 295 762 120 844 Core 855 | 3 . . . . . . . . 15 87 750 Treads 2176 | . . . . . 1153 365 76 295 287 . . Legs . | . . . . . . . . . . . . Wheels 2383 | 60 456 261 220 141 752 . . . 460 33 . Hover 32 | . . . . . . . . . . . 32 Flight 63 | . . . . . 1 . . . . . 62 Fastest Speed 40 | 50 100 105 105 105 86 156 155 155 140 50 40 Average Speed 120 | 97 101 105 105 105 130 156 155 155 174 87 50 Slowest Speed 850 | 100 115 105 105 105 320 156 156 155 850 185 80 Overloaded Moves . | . . . . . . . . . . . . Propulsion Burnouts . | . . . . . . . . . . . . Robots Hopped 3 | . . . . . . . . . . . 3 Potential Cave-ins . | . . . . . . . . . . . . Cave-ins Triggered . | . . . . . . . . . . . . Exploration Rate (%) 38 | 4 56 28 61 33 92 11 66 7 14 75 18 Regions Visited 11 Branch Regions 3 Pre-discovered Areas . | . . . . . . . . . . . . Known Exits Taken 1 | . . . . . 1 . . . . . . Unknown Exits Taken 6 | 1 1 1 1 1 . . . 1 . . . Scrap Searched 2 | . . 1 . 1 . . . . . . . Spaces Dug . | . . . . . . . . . . . . Terrain Destroyed 88 | . 2 41 . . 2 . . 29 13 1 . Melee . | . . . . . . . . . . . . Projectile 13 | . . . . . 2 . . . 10 1 . AOE 75 | . 2 41 . . . . . 29 3 . . Terrain Rammed . | . . . . . . . . . . . . Walls Destroyed . | . . . . . . . . . . . . Machines Disabled . | . . . . . . . . . . . . Actions | -11 -10 -10 -10 -9 -8 -7 -7 -7 -6 -6 -6 --------- Run | Yrd Mat Min Exi Min Mat Fac Was Fac Fac Was Fac Total 6614 | 73 544 457 220 140 2373 402 75 327 976 126 901 Wait 607 | . 40 191 . . 194 2 . 10 139 . 31 Move 5494 | 62 455 260 219 140 1905 365 75 294 762 119 838 Hop 3 | . . . . . . . . . . . 3 Pick Up 74 | 4 11 . 1 . 41 4 . 3 4 . 6 Fast Attach 38 | 6 6 . . . 16 1 . 2 6 . 1 Attach 29 | . . . . . 15 4 . 1 8 1 . Detach 16 | . 1 . . . 9 3 . 1 2 . . Swap 38 | 1 3 . . . 25 6 . 1 2 . . Drop 78 | . 2 . . . 57 6 . 2 5 . 6 Fire 196 | . 26 6 . . 80 11 . 13 46 5 9 Melee 31 | . . . . . 30 . . . . 1 . Ram 8 | . . . . . . . . . 1 . 7 Kick . | . . . . . . . . . . . . Crush 2 | . . . . . 1 . . . 1 . . Escape Stasis . | . . . . . . . . . . . . Rewire . | . . . . . . . . . . . . Trap . | . . . . . . . . . . . . Miscellaneous . | . . . . . . . . . . . . Route ------- -11/Scrapyard -10/Materials (discovered 2 exits: [*Mat] / [*Min]) -10/Mines -10/Exiles -9/Mines -8/Materials (discovered 3 exits: *Fac x3) -7/Factory -7/Waste -7/Factory -6/Factory -6/Waste -6/Factory (discovered 1 exit: [*Low]) History --------- Turn | Location | Event 6 | -11/Scrapyard | Discovered new exit (range 15) 76 | -11/Scrapyard | Entered Materials 101 | -10/Materials | Discovered new exit (range 16) 232 | -10/Materials | Discovered new exit (range 12) 305 | -10/Materials | Build established: Mutant 673 | -10/Materials | Entered Mines 777 | -10/Mines | Assembled infested the area 782 | -10/Mines | Assisted by a Guerilla fighting off Assembled 1042 | -10/Mines | Core integrity fell below 50% 1046 | -10/Mines | Core integrity fell below 20% 1076 | -10/Mines | Deemed a non-threat by the Exiles lab entrance 1077 | -10/Mines | Discovered new exit (range 5) 1149 | -10/Mines | Entered Exiles 1174 | -10/Exiles | Met 8R-AWN 1194 | -10/Exiles | Met EX-HEX 1221 | -10/Exiles | Met EX-BIN 1235 | -10/Exiles | Aligned with FarCom system 1236 | -10/Exiles | Given EX-Vault access code 1267 | -10/Exiles | Opened EX-Vault 1277 | -10/Exiles | Found Cloak of Protection 1299 | -10/Exiles | Warned to stay clear of 0b10 Research branches 1330 | -10/Exiles | Met EX-DEC 1366 | -10/Exiles | Discovered new exit (range 14) 1380 | -10/Exiles | Left Exiles lab with Cloak of Protection 1380 | -10/Exiles | Entered Mines 1395 | -9/Mines | Discovered new exit (range 16) 1415 | -9/Mines | Learned Materials emergency access door positions 1527 | -9/Mines | Entered Materials 1527 | -8/Materials | Evolved 4 slots: Propulsion x2, Utility x2 2103 | -8/Materials | Garrison activated, responded to threat 2293 | -8/Materials | Build established: Scavenger-Assassin 2837 | -8/Materials | Build established: Mutant 3022 | -8/Materials | Discovered new exit (range 5) 3251 | -8/Materials | Identified exit to Factory 3479 | -8/Materials | Build established: Scavenger-Mutant 3988 | -8/Materials | Repaired Hrd. Medium Armor Plating 4028 | -8/Materials | Repaired Adv. Treads 4133 | -8/Materials | Build established: Mutant 4140 | -8/Materials | Discovered exit to Factory (range 5) 4526 | -8/Materials | Discovered exit to Factory (range 15) 4676 | -8/Materials | Entered Factory 4676 | -7/Factory | Evolved 2 slots: Utility x2 4982 | -7/Factory | Build established: Hacker-Mutant 5301 | -7/Factory | Sucked down chute 5301 | -7/Factory | Entered Waste 5312 | -7/Waste | Spotted C-40 Crusher 5316 | -7/Waste | EMP discharged 5347 | -7/Waste | Spotted C-40 Crusher 5359 | -7/Waste | Spotted C-40 Crusher 5362 | -7/Waste | Spotted C-40 Crusher 5377 | -7/Waste | Crushed by Compactor (1 part destroyed) 5395 | -7/Waste | Discovered new exit (range 16) 5403 | -7/Waste | Crushed by Compactor (0 parts destroyed, 1 dropped) 5416 | -7/Waste | EMP discharged 5416 | -7/Waste | System corruption reached 10% 5418 | -7/Waste | Entered Factory 5751 | -7/Factory | Discovered new exit (range 4) 5932 | -7/Factory | Entered another Factory area 5932 | -6/Factory | Evolved 2 slots: Power x1, Utility x1 6219 | -6/Factory | Repaired Hvy. Armor Plating 6617 | -6/Factory | Lost 6 parts (1p3n1u1w) 7127 | -6/Factory | Build established: Mutant 7546 | -6/Factory | Sucked down chute 7546 | -6/Factory | Entered Waste 7561 | -6/Waste | EMP discharged 7561 | -6/Waste | System corruption reached 10% 7580 | -6/Waste | Spotted C-40 Crusher 7617 | -6/Waste | Crushed by Compactor (1 part destroyed, 2 dropped) 7620 | -6/Waste | Crushed by Compactor (1 part destroyed, 1 dropped) 7623 | -6/Waste | Crushed by Compactor (1 part destroyed, 1 dropped) 7624 | -6/Waste | Released all parts (4) 7629 | -6/Waste | Spotted C-40 Crusher 7640 | -6/Waste | Spotted C-40 Crusher 7640 | -6/Waste | Spotted C-40 Crusher 7645 | -6/Waste | Spotted C-40 Crusher 7651 | -6/Waste | Spotted C-40 Crusher 7654 | -6/Waste | Lost 5 parts (2p1n1u1w) 7660 | -6/Waste | Discovered new exit (range 12) 7661 | -6/Waste | EMP discharged 7667 | -6/Waste | Entered Factory 7708 | -6/Factory | Discovered new exit (range 6) 8088 | -6/Factory | Core integrity fell below 50% 8161 | -6/Factory | Core integrity fell below 20% 8167 | -6/Factory | Destroyed by Y-54 Guardian with Gatling Laser Last Messages --------------- 08140_ Backup Plating I destroyed. 08140_ Backup Propulsion I destroyed. 08144_ Slug penetrates Wall. 08144_ Penetrated by Slug. 08144_ TF Node disabled. 08144_ Imp. Sensor Array tumbles out of TF Node. 08144_ Imp. Signal Interpreter tumbles out of TF Node. 08146_ System corrupted: Substantial component data lost. 08147_ Slug penetrates Wall. 08147_ Penetrated by Slug. 08151_ Slug penetrates Wall. 08154_ Penetrated by Slug. 08157_ Slug penetrates Wall. 08157_ Penetrated by Slug. 08157_ Backup Laser I destroyed. 08160_ Backup Power I destroyed. 08163_ ,WUO|6TIDS#NU=B,T4W PSTTGHEJ7 08164_ Backup Propulsion I destroyed. 08165_ Slug penetrates Y-54 Guardian. 08165_ Slug penetrates Wall. Map ----- +----------------------------------------------------+ | ???????????# #????????????????????????# ! """" # | | ???????????# #????????????????????????# """" # | | ???????????# #????????????????????????# """" # | | ???????????# #????????????????????????# # | | ???????????# #????????????????????????########### | | ???????????# #??????????????????????????????????? | | ???##??###?# #??????????????????????????????????? | | ???# ## #??????????????????????????????????? | | ???# """"## #??????????????????????????????????? | | ???# """"## #??????????????????????????????????? | | ???#/ """"## #########??????????????????????????? | | ???? """"## ## #?????########?????????????? | | ?????? ## ## ! ####### #?????????????? | | ????####+## # # # #?????????????? | | ????# T + # # """ #?????????????? | | ????# #[% # "Y" + ! + """ #?????????????? | | ????# ##=## """ # ! # """ #?????????????? | | ????# ##=######### # #?????????????? | | ????# ##[#???????###Y##########?????????????? | | ????# ##/########??# #??????????????????????? | | ????# #=%*% #??# #??????????????????????? | | ?#### #=""" #??# #??????????????????????? | | ?# +["R """ #??# #??????????????????????? | | ?# # """ """ #??# #??????????????????????? | | ?# ###### """ #??# #?#########????????????? | | ?# #????# #??#@# * #????????????? | | ?# #????# ! ####Y# """#????????????? | | ?# #????# / h ; [[ R"#????????????? | | ?# #????############## # [[ """#????????????? | | ?# #?????????????????# # [[ #????????????? | | ?# #?????????????????#s#? #????????????? | | ?# +?????????????????# #? #????????????? | | ?# #?????????????????#s#?? #????????????? | | ## ##+#??????????????# #??########????????????? | | # #??????????????# #??????????????????????? | | #T #??????????????# #??????????????????????? | | ## ##########?????? ???????????????????????? | | ?# ?ss? ???????????????????????? | | ?# ##+########?? ???????????????????????? | | ?# # #??+???????????????????????? | | ?# + #??????????????????????????? | | ?# # #??????????????????????????? | | ?# #???? #??????????????????????????? | | ?# ### #????????##??????????????????????????? | | ?# ###+#######??????????????????????????????? | | ?# # #??????????????????????????????? | | ?###+### ] #??????????????????????????????? | | ?# # #??????????????????????????????? | | ?# """ # #??????????????????????????????? | | ?# """ # < #??#########???????????????????? | +----------------------------------------------------+ Best States ------------- Heat Dissipation 67 Energy Generation 29 Energy Capacity 500 Matter Stores 300 Matter Capacity 450 Sight Range 16 Robot Scan Range 15 Terrain Scan Density 10 Jamming Range 12 Additional Mass Support 9 Armor Coverage 600 Evasion (%) 62 Target Analysis 5 Recoil Reduction 4 Offensive Hacking 20 Defensive Hacking 10 Authchip Count 4 Item Schematics ----------------- None Robot Schematics ------------------ None Fabricated ------------ Nothing Repaired ---------- Hrd. Medium Armor Plating | 22% | -8/Materials Adv. Treads | 23% | -8/Materials Hvy. Armor Plating | 8% | -6/Factory Alien Tech Used ----------------- None Achievements -------------- Below Challenges ------------ None Game ------ Seed SegregatorAuthchipDrillbomb Manual? 0 Play Time 01:08:13 Cumulative 41.7 hours Start 2025.10.19 @ 23:59:28 End 2025.10.20 @ 14:06:31 Sessions 3 Manual Loads 0 Difficulty Rogue Special Mode None Game No. 102 Rogue 95 Adventurer 7 Explorer 0 Win Type - Total 1 Types 1/0/0/0/0/0/0/0/0/0 Lore% 18 Gallery% 34 Achievement% 32 Wizard Run 0 Options --------- Layout 0 ASCII 0 Keyboard 1 Movement Vi Keybinds 0 Fullscreen 1 Font 18/SmallcapsGlow Map View 112x50 Zoom Use 0% Tactical HUD 1 Map Filters NONE Filters NONE Steam X RUN: 9102209e-3940-4227-a961-8f28e1d80a3e